fUSD/lending_fUSD_20241224
["ID","MTS","AMOUNT","RATE_DAILY","PERIOD"]
[346523266,1735019445310,-500.0,0.00013972,2]
[346523267,1735019445319,-500.0,0.00013972,2]
[346523268,1735019445329,-500.0,0.00013972,2]
[346523269,1735019445339,-1845.6,0.00013972,2]
[346523270,1735019445349,-993.59,0.00013972,2]
[346523271,1735019445358,-500.0,0.00013972,2]
[346523272,1735019445367,-500.0,0.00013972,2]
[346523273,1735019445377,-500.0,0.00013972,2]
[346523274,1735019445386,-500.0,0.00013972,2]
[346523275,1735019445396,-546.48,0.00013972,2]
[346523276,1735019445406,-500.0,0.00013972,2]
[346523277,1735019445416,-1462.3,0.00013972,2]
[346523278,1735019445426,-500.0,0.00013972,2]
[346523279,1735019445435,-500.0,0.00013972,2]
[346523280,1735019445445,-500.0,0.00013972,2]
[346523281,1735019445454,-500.0,0.00013972,2]
[346523282,1735019445464,-1969.26,0.00013972,2]
[346523283,1735019445473,-1366.44,0.00013972,2]
[346523284,1735019445483,-506.51,0.00013972,2]
[346523285,1735019445493,-1958.36,0.00013972,2]
[346523286,1735019445502,-703.36,0.00013972,2]
[346523287,1735019445511,-500.0,0.00013972,2]
[346523288,1735019445521,-2805.72,0.00013972,2]
[346523289,1735019445530,-500.0,0.00013972,2]
[346523290,1735019445539,-819.05,0.00013972,2]
[346523291,1735019445550,-500.0,0.00013972,2]
[346523292,1735019445561,-1941.47,0.00013972,2]
[346523293,1735019445570,-500.0,0.00013972,2]
[346523294,1735019445580,-500.0,0.00013972,2]
[346523295,1735019445590,-500.0,0.00013972,2]
[346523296,1735019445599,-500.0,0.00013972,2]
[346523297,1735019445609,-500.0,0.00013972,2]
[346523298,1735019445618,-687.53,0.00013972,2]
[346523299,1735019445627,-1724.0,0.00013972,2]
[346523300,1735019445637,-2643.18,0.00013972,2]
[346523301,1735019445646,-6927.62,0.00013972,2]
[346523302,1735019445656,-500.0,0.00013972,2]
[346523303,1735019445665,-500.0,0.00013972,2]
[346523304,1735019445675,-840.47,0.00013972,2]
[346523305,1735019445684,-500.0,0.00013972,2]
[346523306,1735019445693,-806.41,0.00013972,2]
[346523307,1735019445702,-500.0,0.00013972,2]
[346523308,1735019445712,-500.0,0.00013972,2]
[346523309,1735019445720,-500.0,0.00013972,2]
[346523310,1735019445729,-500.0,0.00013972,2]
[346523311,1735019445738,-500.0,0.00013972,2]
[346523312,1735019445748,-500.0,0.00013972,2]
[346523313,1735019445757,-2299.1,0.00013972,2]
[346523314,1735019445767,-543.20878974,0.00013972,2]
[346523315,1735019445789,-267.43121026,0.00013972,2]
[346523316,1735019445803,-232.56878974,0.00013972,2]
[346523327,1735019446200,-267.43121026,0.00013972,2]
[346523328,1735019446210,-500.0,0.00013972,2]
[346523329,1735019446219,-500.0,0.00013972,2]
[346523330,1735019446228,-533.86,0.00013972,2]
[346523331,1735019446237,-177.33139468,0.00013972,2]
[346523352,1735019894119,158.4,0.00010137,2]
[346523353,1735020286208,353.24,0.00011098,2]
[346523367,1735020619149,24635.60458703,0.000122,2]
[346523375,1735020632596,-712.02367317,0.000122,2]
[346523376,1735020632607,-9432.78553198,0.000122,2]
[346523377,1735020632680,-645.319026,0.000122,2]
[346523378,1735020632701,-3069.26718182,0.000122,2]
[346523379,1735020632712,-150.0,0.00012304,2]
[346523380,1735020632721,-300.0,0.00012399,2]
[346523381,1735020632730,-258.48,0.00012641,2]
[346523382,1735020632739,-5561.0,0.000127,3]
[346523383,1735020632748,-576.50297309,0.00012738,2]
[346523384,1735020632759,-1997.21734795,0.00012738,2]
[346523393,1735020638244,-902.63081299,0.00012738,2]
[346523394,1735020638256,-5252.13886597,0.00012738,2]
[346523395,1735020638268,-250.0,0.00012759,2]
[346523396,1735020638277,-376.55,0.00012775,2]
[346523397,1735020638286,-450.0,0.00013,2]
[346523398,1735020638295,-250.0,0.00013045,2]
[346523399,1735020638305,-1000.0,0.00013142,2]
[346523400,1735020638315,-1000.0,0.00013143,2]
[346523401,1735020638323,-5561.0,0.000132,5]
[346523402,1735020638332,-250.0,0.00013335,2]
[346523403,1735020638342,-353.24,0.00013362,2]
[346523404,1735020638351,-1322.18,0.00013374,2]
[346523405,1735020638360,-433.38,0.00013418,2]
[346523406,1735020638369,-503.23267301,0.00013511,2]
[346523407,1735020638378,-200.17,0.00013597,2]
[346523408,1735020638388,-203.29,0.00013597,2]
[346523409,1735020638397,-203.83,0.00013597,2]
[346523410,1735020638406,-202.71,0.00013597,2]
[346523411,1735020638415,-253.89797307,0.00013598,2]
[346523412,1735020638424,-9155.88984948,0.00013598,2]
[346523413,1735020638433,-819.55999465,0.00013598,2]
[346523414,1735020638442,-8078.93064382,0.00013598,2]
[346523415,1735020638454,-366.257795,0.00013598,2]
[346523416,1735020638465,-627.66207105,0.00013598,2]
[346523417,1735020638476,-2896.39516468,0.00013598,2]
[346523418,1735020638496,-712.78359704,0.00013598,2]
[346523419,1735020638505,-532.59607738,0.00013598,2]
[346523420,1735020638516,-1700.94899516,0.00013598,2]
[346523421,1735020638525,-500.0,0.00013598,2]
[346523422,1735020638534,-1000.0,0.00013598,2]
[346523423,1735020638543,-200.73,0.00013598,2]
[346523424,1735020638552,-200.6,0.00013598,2]
[346523425,1735020638561,-5000.0,0.00013598,2]
[346523426,1735020638570,-420.0,0.00013606,2]
[346523427,1735020638580,-500.0,0.00013673,2]
[346523428,1735020638590,-1000.0,0.00013697,2]
[346523429,1735020638599,-193.85596997,0.00013697,2]
[346523430,1735020638608,-157.014978,0.00013698,2]
[346523431,1735020638616,-500.0,0.00013698,2]
[346523432,1735020638626,-500.0,0.00013698,2]
[346523433,1735020638635,-500.0,0.00013698,2]
[346523434,1735020638644,-500.0,0.00013698,2]
[346523435,1735020638653,-500.0,0.00013698,2]
[346523436,1735020638664,-376.06421195,0.00013698,2]
[346523437,1735020638675,-123.93578805,0.00013698,2]
[346523438,1735020638685,-500.0,0.00013698,2]
[346523439,1735020638694,-218.74503834,0.00013698,2]
[346523440,1735020638703,-500.0,0.00013698,2]
[346523441,1735020638712,-500.0,0.00013698,2]
[346523443,1735020638721,-500.0,0.00013698,2]
[346523444,1735020638730,-500.0,0.00013698,2]
[346523446,1735020638739,-500.0,0.00013698,2]
[346523448,1735020638749,-500.0,0.00013698,2]
[346523449,1735020638758,-382.31917361,0.00013698,2]
[346523450,1735020638769,-117.68082639,0.00013698,2]
[346523451,1735020638779,-500.0,0.00013698,2]
[346523452,1735020638788,-628.2786769,0.00013698,2]
[346523453,1735020638797,-240.61509731,0.00013698,2]
[346523454,1735020638808,-259.38490269,0.00013698,2]
[346523455,1735020638817,-500.0,0.00013698,2]
[346523456,1735020638826,-159.41904231,0.00013698,2]
[346523457,1735020638837,-340.58095769,0.00013698,2]
[346523458,1735020638846,-671.35,0.00013698,2]
[346523459,1735020638855,-500.0,0.00013698,2]
[346523460,1735020638864,-500.0,0.00013698,2]
[346523461,1735020638873,-500.0,0.00013698,2]
[346523462,1735020638882,-500.0,0.00013698,2]
[346523463,1735020638893,-500.0,0.00013698,2]
[346523464,1735020638902,-500.0,0.00013698,2]
[346523465,1735020638911,-500.0,0.00013698,2]
[346523466,1735020638919,-500.0,0.00013698,2]
[346523467,1735020638928,-500.0,0.00013698,2]
[346523468,1735020638937,-500.0,0.00013698,2]
[346523469,1735020638948,-500.0,0.00013698,2]
[346523470,1735020638956,-500.0,0.00013698,2]
[346523471,1735020638966,-500.0,0.00013698,2]
[346523472,1735020638975,-500.0,0.00013698,2]
[346523473,1735020638984,-500.0,0.00013698,2]
[346523474,1735020638994,-500.0,0.00013698,2]
[346523475,1735020639002,-500.0,0.00013698,2]
[346523476,1735020639012,-500.0,0.00013698,2]
[346523477,1735020639021,-500.0,0.00013698,2]
[346523478,1735020639031,-563.01,0.00013698,2]
[346523479,1735020639040,-500.0,0.00013698,2]
[346523480,1735020639050,-500.0,0.00013698,2]
[346523481,1735020639059,-500.0,0.00013698,2]
[346523482,1735020639069,-500.0,0.00013698,2]
[346523483,1735020639079,-243.82185757,0.00013698,2]
[346523485,1735020640360,-256.17814243,0.00013698,2]
[346523486,1735020640370,-500.0,0.00013698,2]
[346523487,1735020640379,-500.0,0.00013698,2]
[346523488,1735020640388,-500.0,0.00013698,2]
[346523489,1735020640397,-500.0,0.00013698,2]
[346523490,1735020640406,-500.0,0.00013698,2]
[346523491,1735020640415,-500.0,0.00013698,2]
[346523492,1735020640424,-500.0,0.00013698,2]
[346523493,1735020640433,-500.0,0.00013698,2]
[346523494,1735020640442,-500.0,0.00013698,2]
[346523495,1735020640451,-505.56515573,0.00013698,2]
[346523496,1735020640460,-500.0,0.00013698,2]
[346523497,1735020640469,-503.51857792,0.00013698,2]
[346523498,1735020640478,-500.0,0.00013698,2]
[346523499,1735020640487,-500.0,0.00013698,2]
[346523500,1735020640497,-500.0,0.00013698,2]
[346523501,1735020640506,-500.0,0.00013698,2]
[346523502,1735020640515,-500.0,0.00013698,2]
[346523503,1735020640524,-500.0,0.00013698,2]
[346523504,1735020640533,-503.46998734,0.00013698,2]
[346523505,1735020640542,-500.0,0.00013698,2]
[346523506,1735020640551,-500.0,0.00013698,2]
[346523507,1735020640560,-500.0,0.00013698,2]
[346523508,1735020640570,-500.0,0.00013698,2]
[346523509,1735020640579,-500.0,0.00013698,2]
[346523510,1735020640588,-500.0,0.00013698,2]
[346523511,1735020640597,-500.0,0.00013698,2]
[346523512,1735020640606,-500.0,0.00013698,2]
[346523513,1735020640616,-500.0,0.00013698,2]
[346523514,1735020640625,-500.0,0.00013698,2]
[346523515,1735020640634,-500.0,0.00013698,2]
[346523516,1735020640643,-500.0,0.00013698,2]
[346523517,1735020640652,-500.0,0.00013698,2]
[346523518,1735020640662,-500.0,0.00013698,2]
[346523519,1735020640671,-500.0,0.00013698,2]
[346523520,1735020640680,-500.0,0.00013698,2]
[346523521,1735020640689,-500.0,0.00013698,2]
[346523522,1735020640698,-500.0,0.00013698,2]
[346523523,1735020640707,-500.0,0.00013698,2]
[346523524,1735020640716,-500.0,0.00013698,2]
[346523525,1735020640725,-500.0,0.00013698,2]
[346523526,1735020640734,-500.0,0.00013698,2]
[346523527,1735020640743,-376.57569896,0.00013698,2]
[346523528,1735020640752,-513.94,0.00013698,2]
[346523529,1735020640762,-500.0,0.00013698,2]
[346523530,1735020640771,-500.0,0.00013698,2]
[346523531,1735020640780,-500.0,0.00013698,2]
[346523532,1735020640789,-500.0,0.00013698,2]
[346523533,1735020640799,-500.0,0.00013698,2]
[346523535,1735020640808,-500.0,0.00013698,2]
[346523537,1735020640817,-500.0,0.00013698,2]
[346523539,1735020640826,-500.0,0.00013698,2]
[346523540,1735020640836,-500.0,0.00013698,2]
[346523541,1735020640845,-506.25903206,0.00013698,2]
[346523542,1735020640855,-500.0,0.00013698,2]
[346523543,1735020640864,-500.0,0.00013698,2]
[346523544,1735020640873,-500.0,0.00013698,2]
[346523545,1735020640882,-500.0,0.00013698,2]
[346523546,1735020640892,-500.0,0.00013698,2]
[346523547,1735020640901,-500.0,0.00013698,2]
[346523548,1735020640911,-500.0,0.00013698,2]
[346523549,1735020640921,-500.0,0.00013698,2]
[346523550,1735020640930,-500.0,0.00013698,2]
[346523551,1735020640939,-500.0,0.00013698,2]
[346523552,1735020640950,-500.0,0.00013698,2]
[346523553,1735020640959,-500.0,0.00013698,2]
[346523554,1735020640969,-500.0,0.00013698,2]
[346523555,1735020640978,-500.0,0.00013698,2]
[346523556,1735020640987,-500.0,0.00013698,2]
[346523557,1735020640997,-161.54555632,0.00013698,2]
[346523558,1735020641006,-500.0,0.00013698,2]
[346523559,1735020641015,-500.0,0.00013698,2]
[346523560,1735020641025,-504.1709827,0.00013698,2]
[346523561,1735020641034,-500.0,0.00013698,2]
[346523562,1735020641043,-500.0,0.00013698,2]
[346523563,1735020641052,-500.0,0.00013698,2]
[346523564,1735020641061,-500.0,0.00013698,2]
[346523565,1735020641070,-500.0,0.00013698,2]
[346523566,1735020641079,-500.0,0.00013698,2]
[346523567,1735020641089,-500.0,0.00013698,2]
[346523568,1735020641098,-500.0,0.00013698,2]
[346523569,1735020641107,-500.0,0.00013698,2]
[346523570,1735020641116,-500.0,0.00013698,2]
[346523571,1735020641126,-500.0,0.00013698,2]
[346523572,1735020641134,-500.0,0.00013698,2]
[346523573,1735020641144,-500.0,0.00013698,2]
[346523574,1735020641154,-500.0,0.00013698,2]
[346523575,1735020641163,-500.0,0.00013698,2]
[346523576,1735020641172,-500.0,0.00013698,2]
[346523577,1735020641182,-430.28712965,0.00013698,2]
[346523578,1735020641192,-500.0,0.00013698,2]
[346523579,1735020641202,-500.0,0.00013698,2]
[346523580,1735020641211,-500.0,0.00013698,2]
[346523581,1735020641221,-557.8205831,0.00013698,2]
[346523582,1735020641231,-500.0,0.00013698,2]
[346523583,1735020641240,-500.0,0.00013698,2]
[346523584,1735020641250,-500.0,0.00013698,2]
[346523585,1735020641259,-500.0,0.00013698,2]
[346523586,1735020641274,-500.0,0.00013698,2]
[346523587,1735020641487,-500.0,0.00013698,2]
[346523588,1735020641496,-510.51759896,0.00013698,2]
[346523589,1735020641506,-500.0,0.00013698,2]
[346523590,1735020641515,-500.0,0.00013698,2]
[346523591,1735020641524,-105722.72936709,0.00013698,2]
[346523592,1735020641539,-193329.40211064,0.00013698,2]
[346523593,1735020641550,-1049.41419005,0.00013698,2]
[346523594,1735020641563,-1685.77121904,0.00013698,2]
[346523595,1735020641574,-1007.52312096,0.00013698,2]
[346523596,1735020641586,-4919.72166071,0.00013698,2]
[346523604,1735020643658,-1364.666824,0.00013698,2]
[346523608,1735020646397,-410.58074656,0.00013698,2]
[346523609,1735020646741,-6590.77967092,0.00013698,2]
[346523613,1735020926098,-1505.63,0.00013585,2]
[346523614,1735020926121,-201.97,0.00013585,2]
[346523615,1735020926144,-202.09,0.00013585,2]
[346523616,1735020926165,-202.4,0.00013585,2]
[346523617,1735020926187,-202.29,0.00013585,2]
[346523618,1735020926208,-203.35,0.00013597,2]
[346523619,1735020926230,-202.28,0.00013597,2]
[346523620,1735020926251,-372.34475973,0.00013598,2]
[346523621,1735020926273,-152.95519855,0.00013598,2]
[346523622,1735020926294,-200.76,0.00013598,2]
[346523623,1735020926315,-202.88,0.00013598,2]
[346523624,1735020926336,-202.5,0.00013598,2]
[346523625,1735020926357,-200.66,0.00013598,2]
[346523626,1735020926377,-1519.89004172,0.00013598,2]
[346523627,1735020952453,157.66,0.00010137,2]
[346523630,1735021278265,338.62,0.00011148,2]
[346523631,1735021542010,2000.0,8.1e-05,2]
[346523671,1735021831571,-150.0,0.00012304,2]
[346523672,1735021831581,-400.17,0.00012695,2]
[346523673,1735021831590,-188.27,0.00012772,2]
[346523674,1735021831599,-902.60428466,0.000129,2]
[346523675,1735021831656,-2412.4,0.000129,2]
[346523676,1735021831810,-495.79962012,0.000129,2]
[346523677,1735021831827,-478.31588386,0.000129,2]
[346523704,1735021837488,-2254.88152453,0.000129,2]
[346523705,1735021837499,-25602.36658683,0.000129,2]
[346523706,1735021837508,-450.0,0.00013,2]
[346523707,1735021837517,-37954.71949701,0.00013,2]
[346523708,1735021837528,-9624.74887865,0.00013,2]
[346523709,1735021837539,-30184.82002738,0.00013,2]
[346523710,1735021837550,-3880.54090701,0.00013,2]
[346523711,1735021837562,-79651.0163001,0.00013,2]
[346523712,1735021837572,-250.0,0.00013075,2]
[346523713,1735021837581,-1000.0,0.00013118,2]
[346523714,1735021837590,-338.62,0.00013412,2]
[346523715,1735021837600,-1994.713,0.00013424,2]
[346523716,1735021837609,-170.745,0.00013424,2]
[346523717,1735021837618,-3000.0,0.0001356,2]
[346523718,1735021837627,-5000.0,0.0001358,2]
[346523719,1735021837637,-201.62,0.00013585,2]
[346523720,1735021837646,-200.76,0.00013585,2]
[346523721,1735021837655,-201.65,0.00013585,2]
[346523722,1735021837664,-202.85,0.00013585,2]
[346523723,1735021837673,-203.45,0.00013585,2]
[346523724,1735021837681,-202.25,0.00013585,2]
[346523725,1735021837691,-200.51,0.00013585,2]
[346523726,1735021837701,-203.62,0.00013585,2]
[346523727,1735021837710,-200.27,0.00013585,2]
[346523728,1735021837720,-445.49940646,0.00013597,2]
[346523729,1735021837729,-445.49940644,0.00013597,2]
[346523730,1735021837738,-445.49940644,0.00013597,2]
[346523731,1735021837747,-445.49940644,0.00013597,2]
[346523732,1735021837756,-445.49940644,0.00013597,2]
[346523733,1735021837765,-445.49940644,0.00013598,2]
[346523734,1735021837774,-445.49940644,0.00013598,2]
[346523735,1735021837783,-445.49940644,0.00013598,2]
[346523736,1735021837792,-445.49940644,0.00013598,2]
[346523737,1735021837801,-1106.73608998,0.00013598,2]
[346523738,1735021837810,-445.49940644,0.00013598,2]
[346523739,1735021837819,-150.99,0.00013598,2]
[346523740,1735021837828,-1530.1,0.00013598,2]
[346523741,1735021837837,-1852.10995828,0.00013598,2]
[346523742,1735021837846,-201.36,0.00013598,2]
[346523743,1735021837855,-202.14,0.00013598,2]
[346523744,1735021837864,-379.8879,0.00013598,2]
[346523746,1735021837873,-475.484,0.00013598,2]
[346523748,1735021837882,-598.4277,0.00013598,2]
[346523749,1735021837891,-150.99,0.00013644,2]
[346523751,1735021837900,-1119.52,0.00013644,2]
[346523753,1735021837909,-299.99,0.00013644,2]
[346523755,1735021837918,-999.99,0.00013644,2]
[346523757,1735021837926,-3586.61,0.00013644,2]
[346523759,1735021837936,-8845.48,0.00013644,2]
[346523761,1735021837945,-384.33,0.00013644,2]
[346523763,1735021837954,-352.67991655,0.00013668,2]
[346523765,1735021837963,-26919.0,0.00013671,2]
[346523767,1735021837973,-500.0,0.00013673,2]
[346523769,1735021837982,-500.0,0.00013673,2]
[346523772,1735021837992,-46604.10220208,0.00013679,2]
[346523774,1735021838001,-125449.79305915,0.0001368,2]
[346523776,1735021838010,-500.0,0.00013697,2]
[346523778,1735021838019,-1000.0,0.00013697,2]
[346523780,1735021838028,-104311.08732697,0.00013698,2]
[346523783,1735021838065,-562.48140947,0.00013698,2]
[346523785,1735021839756,-549.73316218,0.00013544,2]
[346523786,1735021839767,-279.05032471,0.00013544,2]
[346523787,1735021842550,-747.37567247,0.000129,2]
[346523788,1735021842840,-401.9260823,0.000129,2]
[346523806,1735021845597,-1510.49264523,0.000129,2]
[346523807,1735021845607,-1671.21651311,0.00013544,2]
[346523808,1735021845616,-8512.4012554,0.00013698,2]
[346523809,1735021845685,-427.6945,0.00013698,2]
[346523810,1735021845697,-2588.80326154,0.00013698,2]
[346523811,1735021845773,-253.772,0.00013698,2]
[346523812,1735021845938,-289.1299225,0.00013698,2]
[346523813,1735021965841,154.74,0.00010137,2]
[346523814,1735022149486,333.38,0.00010781,2]
[346523815,1735022167007,3502.5,0.00026484,60]
[346523816,1735022213968,1805.08894013,0.00012019,2]
[346523819,1735022327820,294.4064853,0.00012019,2]
[346523820,1735022417598,200.0,0.00012,2]
[346523821,1735023016810,158.24,0.00010137,2]
[346523823,1735023032146,-300.0,0.00012118,2]
[346523824,1735023032155,-1057.0,0.00012119,2]
[346523825,1735023032165,-416.74703026,0.00012119,2]
[346523826,1735023032176,-640.25296974,0.00012119,2]
[346523827,1735023032185,-1057.0,0.00012119,2]
[346523828,1735023032195,-992.91275229,0.00012119,2]
[346523829,1735023032368,-39.01677806,0.00012119,2]
[346523830,1735023032377,-1057.0,0.00012435,2]
[346523831,1735023032387,-1000.0,0.00012563,2]
[346523832,1735023032396,-345.21,0.00012576,2]
[346523833,1735023032405,-188.27,0.00012607,2]
[346523834,1735023032414,-2.45599156,0.00012624,2]
[346523835,1735023032426,-147.54400844,0.00012624,2]
[346523836,1735023032435,-250.0,0.00012638,2]
[346523837,1735023032444,-142.45599156,0.00012939,2]
[346523838,1735023032454,-24.15400844,0.00012939,2]
[346523839,1735023032464,-511.31599156,0.0001309,2]
[346523840,1735023032486,-545.68400844,0.0001309,2]
[346523841,1735023032495,-881.58,0.00013142,2]
[346523842,1735023032505,-552.86013527,0.0001327,2]
[346523843,1735023032520,-177.22986473,0.0001327,2]
[346523844,1735023032530,-420.0,0.00013301,2]
[346523845,1735023032539,-5453.95135394,0.00013558,2]
[346523850,1735023036370,316.71,0.00011039,2]
[346523859,1735023037737,-316.71,0.00013303,2]
[346523860,1735023037752,-346.04864606,0.00013558,2]
[346523861,1735023037761,-5800.0,0.00013566,2]
[346523862,1735023037770,-5800.0,0.00013575,2]
[346523863,1735023037779,-5800.0,0.00013583,2]
[346523864,1735023037788,-5800.0,0.00013592,2]
[346523865,1735023037799,-8255.3820223,0.00013598,2]
[346523866,1735023037807,-152.69908363,0.00013598,2]
[346523867,1735023037817,-500.0,0.00013598,2]
[346523868,1735023037827,-2569.836,0.00013598,2]
[346523869,1735023037836,-4005.1668,0.00013598,2]
[346523870,1735023037845,-102.67204854,0.000136,2]
[346523871,1735023037856,-5697.32795146,0.000136,2]
[346523872,1735023037865,-200.0,0.000136,2]
[346523873,1735023037874,-191.0,0.000136,3]
[346523874,1735023037883,-191.12,0.000136,3]
[346523875,1735023037892,-1117.0,0.000136,2]
[346523876,1735023037901,-1000.0,0.000136,2]
[346523877,1735023037910,-1000.0,0.000136,2]
[346523878,1735023037919,-488.0,0.000136,2]
[346523879,1735023037928,-1000.0,0.000136,2]
[346523880,1735023037937,-1085.0,0.000136,2]
[346523881,1735023037946,-1000.0,0.000136,2]
[346523882,1735023037955,-2805.73202116,0.000136,2]
[346523883,1735023037966,-2994.26797884,0.000136,2]
[346523884,1735023037977,-2975.73202116,0.00013671,2]
[346523885,1735023037988,-1690.45909299,0.00013671,2]
[346523886,1735023038015,-27554.80888585,0.00013671,2]
[346523887,1735023038024,-500.79793072,0.00013673,2]
[346523888,1735023038033,-501.11036789,0.00013673,2]
[346523889,1735023038042,-158.73737915,0.00013673,2]
[346523890,1735023038050,-500.0,0.00013673,2]
[346523891,1735023038060,-1040.72160029,0.00013697,3]
[346523892,1735023038069,-430.59147552,0.00013697,2]
[346523893,1735023038079,-500.0,0.00013697,2]
[346523894,1735023038088,-7500.0,0.00013697,2]
[346523895,1735023038097,-198971.51772231,0.00013698,2]
[346523897,1735023038242,-6036.94377073,0.00013698,2]
[346523898,1735023038253,-4792.4999995,0.00013698,2]
[346523900,1735023038264,-16105.0005,0.00013698,2]
[346523909,1735023039752,-494.62385209,0.00013698,2]
[346523910,1735023039763,-4739.19936288,0.00013698,2]
[346523911,1735023039774,-523.904,0.00013698,2]
[346523912,1735023039787,-965.9,0.00013698,2]
[346523913,1735023039798,-674.463281,0.00013698,2]
[346523914,1735023039809,-856.2799995,0.00013698,2]
[346523915,1735023039821,-157830.81914503,0.00013698,2]
[346523916,1735023039832,-899994.01379976,0.00013698,2]
[346523917,1735023039842,-496014.74221973,0.00013698,2]
[346523918,1735023039886,-24593.62384073,0.00013698,2]
[346523919,1735023040018,-12800.53868412,0.00013698,2]
[346523920,1735023040029,-278.20000002,0.00013698,2]
[346523923,1735023042733,-1017.4,0.0001356,2]
[346523924,1735023042745,-1982.6,0.0001356,2]
[346523925,1735023042759,-179757.40001,0.00013698,2]
[346523926,1735023042778,-830.54240159,0.00013698,2]
[346523927,1735023042875,-42775.7115016,0.00013698,2]
[346523944,1735023045974,-4152.34757323,0.00013598,2]
[346523945,1735023045984,-48718.49702677,0.00013698,2]
[346523946,1735023045995,-24955.581605,0.00013698,2]
[346523953,1735023688976,160.81,0.00010079,2]
[346523954,1735023922402,310.8,0.00010617,2]
[346523955,1735023971022,157.66,0.00010137,2]
[346523962,1735024158441,284.78138649,0.00010086,2]
[346523973,1735024232025,-1057.0,0.00012118,2]
[346523974,1735024232035,-1057.0,0.00012118,2]
[346523975,1735024232044,-250.0,0.00012365,2]
[346523976,1735024232054,-1057.0,0.00012428,2]
[346523977,1735024232063,-172.69,0.00012546,2]
[346523978,1735024232072,-1000.0,0.0001256,2]
[346523979,1735024232081,-399.13,0.00012575,2]
[346523980,1735024232091,-249.05,0.00012603,2]
[346523981,1735024232100,-1500.0,0.00012826,2]
[346523982,1735024232109,-310.8,0.00012881,2]
[346523983,1735024232119,-300.0,0.00012899,2]
[346523984,1735024232128,-770.84,0.000129,2]
[346523985,1735024232137,-437.17,0.000129,2]
[346523986,1735024232146,-770.84,0.000129,2]
[346523987,1735024232155,-437.17,0.000129,2]
[346523988,1735024232165,-450.0,0.00013,2]
[346523989,1735024232175,-300.0,0.00013,4]
[346523990,1735024232185,-202.68,0.00013,2]
[346523991,1735024232195,-200.89,0.00013,2]
[346523992,1735024232204,-200.65,0.00013,2]
[346523993,1735024232219,-203.13,0.00013,2]
[346523994,1735024232228,-201.53,0.00013,2]
[346523995,1735024232237,-203.65,0.00013,2]
[346523996,1735024232249,-203.4,0.00013,2]
[346523997,1735024232258,-201.2,0.00013,2]
[346523998,1735024232268,-201.71,0.00013,2]
[346523999,1735024232277,-715.521,0.0001302,2]
[346524000,1735024232287,-1057.0,0.00013082,2]
[346524001,1735024232296,-600.0,0.000131,4]
[346524002,1735024232306,-1067.0,0.00013158,2]
[346524003,1735024232315,-464.08553411,0.000132,4]
[346524004,1735024232327,-295.49189213,0.000132,4]
[346524005,1735024232344,-240.42257376,0.000132,4]
[346524006,1735024232354,-770.84,0.00013288,2]
[346524007,1735024232363,-153.18742619,0.00013288,2]
[346524008,1735024232374,-283.98257381,0.00013288,2]
[346524009,1735024232383,-316.01742619,0.00013288,2]
[346524010,1735024232404,-373.12257381,0.00013288,2]
[346524011,1735024232414,-437.17,0.00013288,2]
[346524012,1735024232423,-437.17,0.00013288,2]
[346524013,1735024232432,-436.69,0.00013288,2]